fUSD/lending_fUSD_20240122
["ID","MTS","AMOUNT","RATE_DAILY","PERIOD"]
[312504552,1705935173366,-1073.56,0.00055616,120]
[312504553,1705935173395,-500.0,0.00055616,120]
[312504554,1705935173422,-500.0,0.00055616,120]
[312504555,1705935173450,-972.0,0.00055616,120]
[312504556,1705935173478,-1026.23,0.00055616,120]
[312504557,1705935173505,-532.36,0.00055616,120]
[312504558,1705935173534,-500.0,0.00055616,120]
[312504559,1705935173561,-193.34312315,0.00055616,120]
[312504560,1705935173590,-1793.95,0.00055616,120]
[312504561,1705935173618,-500.0,0.00055616,120]
[312504562,1705935173645,-500.0,0.00055616,120]
[312504563,1705935173675,-500.0,0.00055616,120]
[312504564,1705935173704,-500.0,0.00055616,120]
[312504565,1705935173736,-960.21,0.00055616,120]
[312504566,1705935173768,-500.0,0.00055616,120]
[312504567,1705935173797,-1245.11,0.00055616,120]
[312504568,1705935173827,-500.0,0.00055616,120]
[312504569,1705935173855,-500.0,0.00055616,120]
[312504570,1705935173884,-500.0,0.00055616,120]
[312504571,1705935173913,-1202.84,0.00055616,120]
[312504572,1705935173943,-500.0,0.00055616,120]
[312504573,1705935173975,-674.26,0.00055616,120]
[312504574,1705935174004,-1089.12,0.00055616,120]
[312504575,1705935174033,-500.0,0.00055616,120]
[312504576,1705935174061,-500.0,0.00055616,120]
[312504577,1705935174090,-1148.71,0.00055616,120]
[312504578,1705935174118,-1121.58,0.00055616,120]
[312504579,1705935174146,-500.0,0.00055616,120]
[312504580,1705935174175,-500.0,0.00055616,120]
[312504581,1705935174204,-782.17,0.00055616,120]
[312504582,1705935174232,-1269.81,0.00055616,120]
[312504583,1705935174260,-500.0,0.00055616,120]
[312504584,1705935174292,-1163.79,0.00055616,120]
[312504585,1705935174324,-209.28735541,0.00055616,120]
[312504586,1705935174351,-500.0,0.00055616,120]
[312504587,1705935174379,-755.55,0.00055616,120]
[312504588,1705935174407,-500.0,0.00055616,120]
[312504589,1705935174435,-590.73,0.00055616,120]
[312504590,1705935174463,-500.0,0.00055616,120]
[312504591,1705935174490,-653.94,0.00055616,120]
[312504592,1705935174518,-500.0,0.00055616,120]
[312504593,1705935174546,-1082.1,0.00055616,120]
[312504594,1705935174574,-1119.29,0.00055616,120]
[312504595,1705935174601,-884.87,0.00055616,120]
[312504596,1705935174628,-1021.29,0.00055616,120]
[312504597,1705935174656,-590.44,0.00055616,120]
[312504598,1705935174683,-500.0,0.00055616,120]
[312504599,1705935174711,-500.0,0.00055616,120]
[312504600,1705935174738,-557.86,0.00055616,120]
[312504601,1705935174765,-922.84,0.00055616,120]
[312504602,1705935174793,-500.0,0.00055616,120]
[312504603,1705935174819,-854.16,0.00055616,120]
[312504604,1705935174848,-500.0,0.00055616,120]
[312504605,1705935174875,-1360.93,0.00055616,120]
[312504606,1705935174902,-500.0,0.00055616,120]
[312504607,1705935174930,-612.83,0.00055616,120]
[312504608,1705935175136,-500.0,0.00055616,120]
[312504609,1705935175167,-500.0,0.00055616,120]
[312504610,1705935175197,-763.7,0.00055616,120]
[312504611,1705935175228,-862.53,0.00055616,120]
[312504612,1705935175258,-709.99,0.00055616,120]
[312504613,1705935175289,-716.16,0.00055616,120]
[312504614,1705935175318,-500.0,0.00055616,120]
[312504615,1705935175347,-743.65,0.00055616,120]
[312504616,1705935175375,-500.0,0.00055616,120]
[312504617,1705935175406,-500.0,0.00055616,120]
[312504618,1705935175434,-501.89,0.00055616,120]
[312504619,1705935175462,-765.86,0.00055616,120]
[312504620,1705935175490,-1960.91,0.00055616,120]
[312504621,1705935175518,-500.0,0.00055616,120]
[312504622,1705935175547,-500.0,0.00055616,120]
[312504623,1705935175575,-864.85,0.00055616,120]
[312504624,1705935175603,-500.0,0.00055616,120]
[312504625,1705935175632,-151.53300631,0.00055616,120]
[312504626,1705935175660,-500.0,0.00055616,120]
[312504627,1705935175689,-895.93,0.00055616,120]
[312504628,1705935175716,-375.02,0.00055616,120]
[312504629,1705935175743,-652.75,0.00055616,120]
[312504630,1705935175770,-500.0,0.00055616,120]
[312504631,1705935175799,-1017.75,0.00055616,120]
[312504632,1705935175826,-718.71,0.00055616,120]
[312504633,1705935175854,-500.0,0.00055616,120]
[312504634,1705935175882,-500.0,0.00055616,120]
[312504635,1705935175912,-500.0,0.00055616,120]
[312504636,1705935175943,-950.95,0.00055616,120]
[312504637,1705935175974,-500.0,0.00055616,120]
[312504638,1705935176005,-1166.26,0.00055616,120]
[312504639,1705935176036,-500.0,0.00055616,120]
[312504640,1705935176067,-1163.88,0.00055616,120]
[312504641,1705935176096,-706.58,0.00055616,120]
[312504642,1705935176125,-522.71716469,0.00055616,120]
[312504643,1705935176155,-500.0,0.00055616,120]
[312504644,1705935176186,-500.0,0.00055616,120]
[312504645,1705935176217,-500.0,0.00055616,120]
[312504646,1705935176246,-500.0,0.00055616,120]
[312504647,1705935176282,-775.78,0.00055616,120]
[312504648,1705935176314,-1841.93,0.00055616,120]
[312504649,1705935176344,-500.0,0.00055616,120]
[312504650,1705935176379,-500.0,0.00055616,120]
[312504651,1705935176412,-604.25,0.00055616,120]
[312504652,1705935176442,-500.0,0.00055616,120]
[312504653,1705935176472,-500.0,0.00055616,120]
[312504654,1705935176503,-744.8,0.00055616,120]
[312504655,1705935176534,-500.0,0.00055616,120]
[312504656,1705935176563,-803.23,0.00055616,120]
[312504657,1705935176594,-500.0,0.00055616,120]
[312504658,1705935176625,-1391.49,0.00055616,120]
[312504659,1705935176656,-500.0,0.00055616,120]
[312504660,1705935176687,-743.79,0.00055616,120]
[312504661,1705935176717,-758.95,0.00055616,120]
[312504662,1705935176746,-500.0,0.00055616,120]
[312504663,1705935176774,-805.81,0.00055616,120]
[312504664,1705935176806,-500.0,0.00055616,120]
[312504665,1705935176837,-500.0,0.00055616,120]
[312504666,1705935176869,-575.63,0.00055616,120]
[312504667,1705935176899,-631.15492701,0.00055616,120]
[312504668,1705935176929,-500.0,0.00055616,120]
[312504669,1705935176959,-869.66,0.00055616,120]
[312504670,1705935176993,-500.0,0.00055616,120]
[312504671,1705935177026,-500.0,0.00055616,120]
[312504672,1705935177058,-538.06650209,0.00055616,120]
[312504673,1705935177089,-500.0,0.00055616,120]
[312504674,1705935177123,-500.0,0.00055616,120]
[312504675,1705935177155,-907.16,0.00055616,120]
[312504676,1705935177186,-789.34,0.00055616,120]
[312504677,1705935177216,-619.23,0.00055616,120]
[312504678,1705935177247,-1452.65,0.00055616,120]
[312504679,1705935177278,-500.0,0.00055616,120]
[312504680,1705935177311,-696.15,0.00055616,120]
[312504681,1705935177341,-500.0,0.00055616,120]
[312504682,1705935177372,-593.79,0.00055616,120]
[312504683,1705935177401,-500.0,0.00055616,120]
[312504684,1705935177430,-500.0,0.00055616,120]
[312504685,1705935177458,-1334.13,0.00055616,120]
[312504686,1705935177487,-500.0,0.00055616,120]
[312504687,1705935177515,-836.62,0.00055616,120]
[312504688,1705935177543,-837.72,0.00055616,120]
[312504689,1705935177573,-623.18,0.00055616,120]
[312504690,1705935177603,-1323.21,0.00055616,120]
[312504691,1705935177631,-500.0,0.00055616,120]
[312504692,1705935177661,-557.03,0.00055616,120]
[312504693,1705935177689,-609.57,0.00055616,120]
[312504694,1705935177718,-951.02,0.00055616,120]
[312504695,1705935177747,-1742.89,0.00055616,120]
[312504696,1705935177776,-500.0,0.00055616,120]
[312504697,1705935177805,-500.0,0.00055616,120]
[312504698,1705935177833,-500.0,0.00055616,120]
[312504699,1705935177862,-762.89,0.00055616,120]
[312504700,1705935177891,-650.96,0.00055616,120]
[312504701,1705935177922,-500.0,0.00055616,120]
[312504702,1705935177961,-659.39,0.00055616,120]
[312504703,1705935177996,-500.0,0.00055616,120]
[312504704,1705935178028,-500.0,0.00055616,120]
[312504705,1705935178059,-500.0,0.00055616,120]
[312504706,1705935178088,-651.75,0.00055616,120]
[312504707,1705935178120,-500.0,0.00055616,120]
[312504708,1705935178152,-500.0,0.00055616,120]
[312504709,1705935178183,-852.44,0.00055616,120]
[312504710,1705935178213,-500.0,0.00055616,120]
[312504711,1705935178242,-500.0,0.00055616,120]
[312504712,1705935178529,-500.0,0.00055616,120]
[312504713,1705935178561,-500.0,0.00055616,120]
[312504714,1705935178591,-500.0,0.00055616,120]
[312504715,1705935178621,-500.0,0.00055616,120]
[312504716,1705935178650,-1607.72,0.00055616,120]
[312504717,1705935178678,-500.0,0.00055616,120]
[312504718,1705935178707,-1788.51,0.00055616,120]
[312504719,1705935178735,-500.0,0.00055616,120]
[312504720,1705935178762,-669.85,0.00055616,120]
[312504721,1705935178790,-744.04,0.00055616,120]
[312504722,1705935178818,-500.0,0.00055616,120]
[312504723,1705935178848,-645.14,0.00055616,120]
[312504724,1705935178877,-608.8,0.00055616,120]
[312504725,1705935178905,-500.0,0.00055616,120]
[312504726,1705935178935,-224.41085236,0.00055616,120]
[312504727,1705935178966,-702.16,0.00055616,120]
[312504728,1705935178994,-300.0,0.00055616,120]
[312504729,1705935179024,-559.87,0.00055616,120]
[312504730,1705935179053,-500.0,0.00055616,120]
[312504731,1705935179083,-500.0,0.00055616,120]
[312504732,1705935179113,-1326.85,0.00055616,120]
[312504733,1705935179144,-500.0,0.00055616,120]
[312504734,1705935179175,-1404.36,0.00055616,120]
[312504735,1705935179205,-1490.02,0.00055616,120]
[312504736,1705935179234,-500.0,0.00055616,120]
[312504737,1705935179263,-500.0,0.00055616,120]
[312504738,1705935179292,-500.0,0.00055616,120]
[312504739,1705935179323,-527.35566537,0.00055616,120]
[312504740,1705935179355,-500.0,0.00055616,120]
[312504741,1705935179384,-1273.58,0.00055616,120]
[312504742,1705935179414,-500.0,0.00055616,120]
[312504743,1705935179443,-500.0,0.00055616,120]
[312504744,1705935179472,-500.0,0.00055616,120]
[312504745,1705935179501,-1577.88,0.00055616,120]
[312504746,1705935179531,-850.44,0.00055616,120]
[312504747,1705935179560,-500.0,0.00055616,120]
[312504748,1705935179588,-665.34,0.00055616,120]
[312504749,1705935179616,-500.0,0.00055616,120]
[312504750,1705935179645,-836.88,0.00055616,120]
[312504751,1705935179673,-500.0,0.00055616,120]
[312504752,1705935179701,-1144.66,0.00055616,120]
[312504753,1705935179729,-500.0,0.00055616,120]
[312504754,1705935179757,-649.5,0.00055616,120]
[312504755,1705935179784,-500.0,0.00055616,120]
[312504756,1705935179814,-1273.46,0.00055616,120]
[312504757,1705935179842,-991.3,0.00055616,120]
[312504758,1705935179871,-500.0,0.00055616,120]
[312504759,1705935179900,-500.0,0.00055616,120]
[312504760,1705935179930,-500.0,0.00055616,120]
[312504761,1705935179959,-1047.97,0.00055616,120]
[312504762,1705935179990,-500.0,0.00055616,120]
[312504763,1705935180019,-500.0,0.00055616,120]
[312504764,1705935180049,-472.2447856,0.00055616,120]
[312504765,1705935180080,-500.0,0.00055616,120]
[312504766,1705935180110,-500.0,0.00055616,120]
[312504767,1705935180140,-500.0,0.00055616,120]
[312504768,1705935180170,-600.2,0.00055616,120]
[312504769,1705935180199,-500.0,0.00055616,120]
[312504770,1705935180229,-754.61,0.00055616,120]
[312504771,1705935180258,-852.62,0.00055616,120]
[312504772,1705935180287,-836.94,0.00055616,120]
[312504773,1705935180317,-1180.08,0.00055616,120]
[312504774,1705935180346,-500.0,0.00055616,120]
[312504775,1705935180375,-1099.97,0.00055616,120]
[312504776,1705935180406,-500.0,0.00055616,120]
[312504777,1705935180434,-500.0,0.00055616,120]
[312504778,1705935180463,-500.0,0.00055616,120]
[312504779,1705935180497,-500.0,0.00055616,120]
[312504780,1705935180526,-3067.18,0.00055616,120]
[312504781,1705935180555,-524.00165144,0.00055616,120]
[312504782,1705935180583,-857.36,0.00055616,120]
[312504783,1705935180611,-1899.47,0.00055616,120]
[312504784,1705935180640,-500.0,0.00055616,120]
[312504785,1705935180667,-597.17,0.00055616,120]
[312504786,1705935180697,-1527.68,0.00055616,120]
[312504787,1705935180726,-1800.8,0.00055616,120]
[312504788,1705935180755,-806.43,0.00055616,120]
[312504789,1705935180783,-500.0,0.00055616,120]
[312504790,1705935180810,-2110.23,0.00055616,120]
[312504791,1705935180839,-500.0,0.00055616,120]
[312504792,1705935180869,-500.0,0.00055616,120]
[312504793,1705935180896,-500.0,0.00055616,120]
[312504794,1705935180926,-1844.2,0.00055616,120]
[312504795,1705935180955,-500.0,0.00055616,120]
[312504796,1705935180984,-552.99,0.00055616,120]
[312504797,1705935181013,-500.0,0.00055616,120]
[312504798,1705935181043,-1034.47,0.00055616,120]
[312504799,1705935181071,-500.0,0.00055616,120]
[312504800,1705935181100,-1707.75,0.00055616,120]
[312504801,1705935181130,-666.0,0.00055616,120]
[312504802,1705935181159,-1081.22,0.00055616,120]
[312504803,1705935181188,-684.76,0.00055616,120]
[312504804,1705935181222,-500.0,0.00055616,120]
[312504805,1705935181253,-1129.13,0.00055616,120]
[312504806,1705935181282,-500.0,0.00055616,120]
[312504807,1705935181314,-1780.29,0.00055616,120]
[312504808,1705935181342,-599.85,0.00055616,120]
[312504809,1705935181373,-500.0,0.00055616,120]
[312504810,1705935181405,-932.99,0.00055616,120]
[312504811,1705935181437,-2637.9,0.00055616,120]
[312504812,1705935181469,-500.0,0.00055616,120]
[312504813,1705935181500,-1394.47,0.00055616,120]
[312504814,1705935181529,-756.66,0.00055616,120]
[312504815,1705935181559,-569.47,0.00055616,120]
[312504816,1705935181772,-500.0,0.00055616,120]
[312504817,1705935181803,-500.0,0.00055616,120]
[312504818,1705935181835,-591.22,0.00055616,120]
[312504819,1705935181866,-1651.7,0.00055616,120]
[312504820,1705935181897,-500.0,0.00055616,120]
[312504821,1705935181929,-1013.83,0.00055616,120]
[312504822,1705935181960,-970.35,0.00055616,120]
[312504823,1705935181993,-1849.77,0.00055616,120]
[312504824,1705935182023,-500.0,0.00055616,120]
[312504825,1705935182054,-500.0,0.00055616,120]
[312504826,1705935182084,-506.16,0.00055616,120]
[312504827,1705935182116,-920.91,0.00055616,120]
[312504828,1705935182147,-752.54,0.00055616,120]
[312504829,1705935182178,-653.54,0.00055616,120]
[312504830,1705935182209,-500.0,0.00055616,120]
[312504831,1705935182240,-1751.16,0.00055616,120]
[312504832,1705935182269,-1880.56,0.00055616,120]
[312504833,1705935182297,-652.01,0.00055616,120]
[312504834,1705935182329,-1782.45,0.00055616,120]
[312504835,1705935182357,-353.55201098,0.00055616,120]
[312504836,1705935182387,-631.92,0.00055616,120]
[312504837,1705935182416,-650.78,0.00055616,120]
[312504838,1705935182444,-752.76,0.00055616,120]
[312504839,1705935182472,-500.0,0.00055616,120]
[312504840,1705935182501,-2270.34,0.00055616,120]
[312504841,1705935182531,-1786.0,0.00055616,120]
[312504842,1705935182559,-2498.73,0.00055616,120]
[312504843,1705935182588,-500.0,0.00055616,120]
[312504844,1705935182617,-1361.82,0.00055616,120]
[312504845,1705935182647,-3797.03,0.00055616,120]
[312504846,1705935182678,-1781.02,0.00055616,120]
[312504847,1705935182709,-1755.9,0.00055616,120]
[312504848,1705935182740,-1364.57,0.00055616,120]
[312504849,1705935182770,-500.0,0.00055616,120]
[312504850,1705935182801,-500.0,0.00055616,120]
[312504851,1705935182830,-1756.9,0.00055616,120]
[312504852,1705935182860,-790.71,0.00055616,120]
[312504853,1705935182889,-598.0,0.00055616,120]
[312504854,1705935182918,-500.0,0.00055616,120]
[312504855,1705935182951,-2055.24,0.00055616,120]
[312504856,1705935182982,-416.98462739,0.00055616,120]
[312504857,1705935183013,-609.8,0.00055616,120]
[312504858,1705935183042,-2203.35,0.00055616,120]
[312504859,1705935183072,-543.53,0.00055616,120]
[312504860,1705935183104,-761.51,0.00055616,120]
[312504861,1705935183136,-1909.96,0.00055616,120]
[312504862,1705935183166,-1240.73,0.00055616,120]
[312504863,1705935183197,-12125.73,0.00055616,120]
[312504864,1705935183226,-500.0,0.00055616,120]
[312504865,1705935183255,-500.0,0.00055616,120]
[312504866,1705935183284,-2651.29,0.00055616,120]
[312504867,1705935183316,-1145.3,0.00055616,120]
[312504868,1705935183347,-1183.91,0.00055616,120]
[312504869,1705935183377,-1284.7,0.00055616,120]
[312504870,1705935183407,-500.0,0.00055616,120]
[312504871,1705935183435,-5137.25,0.00055616,120]
[312504872,1705935183463,-500.0,0.00055616,120]
[312504873,1705935183492,-1103.44,0.00055616,120]
[312504874,1705935183523,-500.0,0.00055616,120]
[312504875,1705935183551,-500.0,0.00055616,120]
[312504876,1705935183579,-500.0,0.00055616,120]
[312504877,1705935183608,-1260.21,0.00055616,120]
[312504878,1705935183636,-500.0,0.00055616,120]
[312504879,1705935183665,-500.0,0.00055616,120]
[312504880,1705935183695,-2169.34,0.00055616,120]
[312504881,1705935183723,-12713.95,0.00055616,120]
[312504882,1705935183752,-1882.98,0.00055616,120]
[312504883,1705935183780,-500.0,0.00055616,120]
[312504884,1705935183808,-967.39,0.00055616,120]
[312504885,1705935183840,-1657.15,0.00055616,120]
[312504886,1705935183869,-500.0,0.00055616,120]
[312504887,1705935183899,-943.25,0.00055616,120]
[312504888,1705935183930,-500.0,0.00055616,120]
[312504889,1705935183961,-1729.69,0.00055616,120]
[312504890,1705935183993,-500.0,0.00055616,120]
[312504891,1705935184026,-569.65,0.00055616,120]
[312504892,1705935184059,-606.66,0.00055616,120]
[312504893,1705935184091,-2125.62,0.00055616,120]
[312504894,1705935184121,-1419.55,0.00055616,120]
[312504895,1705935184151,-1565.88,0.00055616,120]
[312504896,1705935184182,-1400.47,0.00055616,120]
[312504897,1705935184213,-689.11,0.00055616,120]
[312504898,1705935184243,-1689.91,0.00055616,120]
[312504899,1705935184274,-500.0,0.00055616,120]
[312504900,1705935184306,-500.0,0.00055616,120]
[312504901,1705935184334,-1921.07,0.00055616,120]
[312504902,1705935184364,-500.0,0.00055616,120]
[312504903,1705935184393,-700.71,0.00055616,120]
[312504904,1705935184423,-2015.32,0.00055616,120]
[312504905,1705935184453,-500.0,0.00055616,120]
[312504906,1705935184481,-500.0,0.00055616,120]
[312504907,1705935184512,-500.0,0.00055616,120]
[312504908,1705935184540,-1539.91,0.00055616,120]
[312504909,1705935184570,-1927.03,0.00055616,120]
[312504910,1705935184599,-1314.85,0.00055616,120]
[312504911,1705935184629,-1686.46,0.00055616,120]
[312504912,1705935184659,-500.0,0.00055616,120]
[312504913,1705935184688,-677.55,0.00055616,120]
[312504914,1705935184717,-1985.74,0.00055616,120]
[312504915,1705935184748,-2691.17,0.00055616,120]
[312504916,1705935184778,-500.0,0.00055616,120]
[312504917,1705935184810,-550.06,0.00055616,120]
[312504918,1705935184839,-1259.3,0.00055616,120]
[312504919,1705935185065,-712.03,0.00055616,120]
[312504920,1705935185103,-4762.26,0.00055616,120]
[312504921,1705935185139,-736.61,0.00055616,120]
[312504922,1705935185172,-500.0,0.00055616,120]
[312504923,1705935185205,-500.0,0.00055616,120]
[312504924,1705935185240,-2461.8,0.00055616,120]
[312504925,1705935185274,-1880.63,0.00055616,120]
[312504926,1705935185312,-1557.26,0.00055616,120]
[312504927,1705935185347,-793.99,0.00055616,120]
[312504928,1705935185383,-500.0,0.00055616,120]
[312504929,1705935185420,-500.0,0.00055616,120]
[312504930,1705935185456,-1379.69,0.00055616,120]
[312504931,1705935185492,-932.81,0.00055616,120]
[312504932,1705935185528,-500.0,0.00055616,120]
[312504933,1705935185567,-2604.87,0.00055616,120]
[312504934,1705935185607,-500.0,0.00055616,120]
[312504935,1705935185646,-500.0,0.00055616,120]
[312504936,1705935185685,-500.0,0.00055616,120]
[312504937,1705935185723,-3105.23,0.00055616,120]
[312504938,1705935185757,-500.0,0.00055616,120]
[312504939,1705935185790,-500.0,0.00055616,120]
[312504940,1705935185822,-319.53710185,0.00055616,120]
[312504941,1705935185859,-1967.28,0.00055616,120]
[312504942,1705935185893,-504.66,0.00055616,120]
[312504943,1705935185928,-2108.57,0.00055616,120]
[312504944,1705935185963,-5534.47,0.00055616,120]
[312504945,1705935185998,-2822.45,0.00055616,120]
[312504946,1705935186032,-1147.57,0.00055616,120]
[312504947,1705935186070,-1151.76,0.00055616,120]
[312504948,1705935186115,-500.0,0.00055616,120]
[312504949,1705935186154,-500.0,0.00055616,120]
[312504950,1705935186192,-504.79,0.00055616,120]
[312504951,1705935186229,-828.94,0.00055616,120]
[312504952,1705935186266,-1921.76,0.00055616,120]
[312504953,1705935186303,-500.0,0.00055616,120]
[312504954,1705935186339,-500.0,0.00055616,120]
[312504955,1705935186380,-517.22,0.00055616,120]
[312504956,1705935186415,-836.23,0.00055616,120]
[312504957,1705935186449,-313.9372811,0.00055616,120]
[312504958,1705935186482,-859.23,0.00055616,120]
[312504959,1705935186514,-564.75966675,0.00055616,120]
[312504960,1705935186547,-2987.07,0.00055616,120]
[312504961,1705935186579,-1485.29,0.00055616,120]
[312504962,1705935186611,-500.0,0.00055616,120]
[312504963,1705935186643,-699.12,0.00055616,120]
[312504964,1705935186676,-1113.39,0.00055616,120]
[312504965,1705935186711,-500.0,0.00055616,120]
[312504966,1705935186743,-1325.84,0.00055616,120]
[312504967,1705935186775,-610.32,0.00055616,120]
[312504968,1705935186806,-500.0,0.00055616,120]
[312504969,1705935186835,-500.0,0.00055616,120]
[312504970,1705935186866,-680.84,0.00055616,120]
[312504971,1705935186897,-977.5,0.00055616,120]
[312504972,1705935186929,-1197.96,0.00055616,120]
[312504973,1705935186964,-1447.9,0.00055616,120]
[312504974,1705935186999,-6620.65,0.00055616,120]
[312504975,1705935187033,-768.63,0.00055616,120]
[312504976,1705935187066,-4857.5,0.00055616,120]
[312504977,1705935187099,-2086.5,0.00055616,120]
[312504978,1705935187134,-500.0,0.00055616,120]
[312504979,1705935187165,-500.0,0.00055616,120]
[312504980,1705935187196,-1199.49,0.00055616,120]
[312504981,1705935187231,-500.0,0.00055616,120]
[312504982,1705935187262,-500.0,0.00055616,120]
[312504983,1705935187293,-2054.67,0.00055616,120]
[312504984,1705935187324,-500.0,0.00055616,120]
[312504985,1705935187356,-886.41,0.00055616,120]
[312504986,1705935187387,-500.0,0.00055616,120]
[312504987,1705935187417,-519.19,0.00055616,120]
[312504988,1705935187445,-500.0,0.00055616,120]
[312504989,1705935187474,-500.0,0.00055616,120]
[312504990,1705935187503,-10248.86,0.00055616,120]
[312504991,1705935187532,-500.0,0.00055616,120]
[312504992,1705935187562,-500.0,0.00055616,120]
[312504993,1705935187590,-1103.75,0.00055616,120]
[312504994,1705935187621,-751.87,0.00055616,120]
[312504995,1705935187650,-3237.18,0.00055616,120]
[312504996,1705935187678,-789.59,0.00055616,120]
[312504997,1705935187706,-2009.92,0.00055616,120]
[312504998,1705935187734,-500.0,0.00055616,120]
[312504999,1705935187762,-685.82,0.00055616,120]
[312505000,1705935187790,-964.24,0.00055616,120]
[312505001,1705935187820,-4264.33,0.00055616,120]
[312505002,1705935187850,-207.01688913,0.00055616,120]
[312505003,1705935187882,-1535.34,0.00055616,120]
[312505004,1705935187911,-809.7,0.00055616,120]
[312505005,1705935187940,-1154.09,0.00055616,120]
[312505006,1705935187969,-1697.89,0.00055616,120]
[312505007,1705935188001,-1595.7,0.00055616,120]
[312505008,1705935188034,-1596.19,0.00055616,120]
[312505009,1705935188064,-1154.51,0.00055616,120]
[312505010,1705935188096,-500.0,0.00055616,120]
[312505011,1705935188127,-414.75601078,0.00055616,120]
[312505012,1705935188158,-500.0,0.00055616,120]
[312505013,1705935188188,-2914.21,0.00055616,120]
[312505014,1705935188219,-1552.88,0.00055616,120]
[312505015,1705935188249,-608.04,0.00055616,120]
[312505016,1705935188278,-500.0,0.00055616,120]
[312505017,1705935188310,-700.43,0.00055616,120]
[312505018,1705935188339,-980.8,0.00055616,120]
[312505019,1705935188371,-696.01,0.00055616,120]
[312505020,1705935188403,-1757.28,0.00055616,120]
[312505021,1705935188432,-665.51,0.00055616,120]
[312505022,1705935188460,-1171.38,0.00055616,120]
[312505023,1705935188661,-1708.66,0.00055616,120]
[312505024,1705935188694,-500.0,0.00055616,120]
[312505025,1705935188725,-559.65,0.00055616,120]
[312505026,1705935188755,-417.17183835,0.00055616,120]
[312505027,1705935188786,-1273.88,0.00055616,120]
[312505028,1705935188816,-193.63407376,0.00055616,120]
[312505029,1705935188845,-500.0,0.00055616,120]
[312505030,1705935188875,-536.79,0.00055616,120]
[312505031,1705935188905,-520.77,0.00055616,120]
[312505032,1705935188935,-908.82,0.0005563,120]
[312505033,1705935188967,-908.82,0.00055712,120]
[312505034,1705935188999,-150.40437152,0.00055713,66]
[312505035,1705935189030,-908.82,0.00055726,120]
[312505036,1705935189065,-908.82,0.0005589,120]
[312505037,1705935189100,-500.0,0.0005589,120]
[312505038,1705935189138,-500.0,0.0005589,120]
[312505039,1705935189173,-500.0,0.0005589,120]
[312505040,1705935189207,-500.0,0.0005589,120]
[312505041,1705935189240,-562.44,0.0005589,120]
[312505042,1705935189272,-500.0,0.0005589,120]
[312505043,1705935189302,-748.98,0.0005589,120]
[312505044,1705935189331,-589.84,0.0005589,120]
[312505045,1705935189361,-296.37599877,0.0005589,120]
[312505046,1705935189392,-500.0,0.0005589,120]
[312505047,1705935189423,-500.0,0.0005589,120]
[312505048,1705935189452,-500.0,0.0005589,120]
[312505049,1705935189481,-586.98,0.0005589,120]
[312505050,1705935189511,-501.26,0.0005589,120]
[312505051,1705935189539,-500.0,0.0005589,120]